bitfinex/quotes_ETHUSD_20260106
["timestamp","ask_amount","ask_price","bid_price","bid_amount"]
[1767710303122,2.03510137,3292.7,3290.6,0.773]
[1767710303301,0.002,3292.4,3290.5,2.04365845]
[1767710303505,0.82996737,3292.3,3290.7,3.03881703]
[1767710304120,9.11244759,3292.2,3290.5,0.20436585]
[1767710304299,0.03796968,3292.1,3290.5,3.03902651]
[1767710304501,6.07496506,3292.2,3290.5,6.07807832]
[1767710304704,0.002,3292.4,3291.0,2.0619008]
[1767710304905,0.002,3292.4,3291.3,2.0619008]
[1767710305101,0.002,3292.4,3291.4,0.20619008]
[1767710305656,3.0354699,3294.4,3292.3,2.0619008]
[1767710305820,0.002,3294.5,3292.3,2.0619008]
[1767710305821,0.002,3294.5,3292.5,2.0619008]
[1767710306143,0.03994202,3294.5,3292.6,3.81011352]
[1767710306316,0.03994202,3294.5,3292.6,6.84722704]
[1767710306516,0.03994202,3294.5,3292.6,3.81011352]
[1767710306714,0.03994202,3294.5,3292.7,0.38101135]
[1767710306940,0.792,3294.2,3292.7,0.38101135]
[1767710307114,0.792,3294.2,3291.8,2.04365845]
[1767710307312,0.792,3294.2,3292.0,3.03764674]
[1767710307313,0.03794778,3294.0,3292.0,3.03764674]
[1767710307503,0.03794778,3294.0,3291.9,0.773]
[1767710307702,0.002,3294.1,3291.9,0.773]
[1767710307929,0.002,3294.1,3292.0,0.58544995]
[1767710308132,0.002,3294.1,3292.0,3.03766707]
[1767710308335,0.792,3294.0,3291.9,3.81073721]
[1767710308537,0.03794893,3293.9,3291.9,3.03773721]
[1767710308861,2.03308754,3293.9,3291.8,0.773]
[1767710309034,3.21724235,3293.4,3290.8,3.03868945]
[1767710309243,0.03795584,3293.3,3290.9,0.773]
[1767710309454,3.199,3293.1,3290.9,0.773]
[1767710309627,0.0379593,3293.0,3290.9,0.773]
[1767710310133,9.11051049,3292.9,3290.9,0.773]
[1767710310332,9.11051049,3292.9,3290.6,0.773]
[1767710310333,0.03796161,3292.8,3290.6,0.773]
[1767710310630,1.99513861,3292.6,3290.6,3.81195065]
[1767710310858,1.99513861,3292.4,3290.9,3.03868074]
[1767710311044,2.03310598,3292.3,3290.7,0.38119507]
[1767710311245,2.08928965,3291.9,3289.7,0.773]
[1767710311444,3.199,3292.0,3289.3,0.01824235]
[1767710311445,2.08928965,3291.7,3289.3,0.01824235]
[1767710311650,2.08928965,3291.7,3289.4,0.773]
[1767710311856,2.08928965,3291.6,3289.8,3.03961233]
[1767710312065,6.07625702,3291.5,3289.9,3.34349317]
[1767710312356,2.08928965,3291.3,3289.9,0.30396123]
[1767710312558,2.08928965,3291.3,3289.4,0.773]
[1767710312741,0.792,3291.4,3289.4,2.73399829]
[1767710313060,0.792,3291.4,3289.4,3.81304797]
[1767710313453,0.792,3291.4,3289.6,3.03987808]
[1767710313758,0.792,3291.4,3289.8,3.03964079]
[1767710313969,0.792,3291.4,3289.7,0.30398781]
[1767710314128,6.07662624,3291.3,3289.7,3.03975587]
[1767710314325,6.07662624,3291.3,3288.2,1.18355744]
[1767710314326,2.08928965,3289.1,3286.3,0.01824235]
[1767710314562,2.08928965,3289.1,3285.9,0.01824235]
[1767710314563,0.16,3288.8,3287.8,0.01824235]
[1767710314745,3.46824456,3289.0,3287.7,0.01824235]
[1767710314746,0.28194522,3288.7,3287.7,0.01824235]
[1767710314957,3.18629934,3289.0,3288.5,0.01824235]
[1767710315141,0.792,3288.9,3288.8,0.01824235]
[1767710315466,0.792,3288.9,3288.5,0.01824235]
[1767710315467,0.7914456,3289.7,3287.2,0.79124235]
[1767710315630,0.792,3289.6,3288.6,0.01824235]
[1767710315830,0.792,3289.6,3288.3,0.01824235]
[1767710316062,6.07995136,3289.5,3288.6,0.01824235]
[1767710316264,0.792,3289.4,3288.6,0.01824235]
[1767710316439,6.07995136,3289.5,3288.8,0.01824235]
[1767710316639,6.87195136,3289.5,3288.8,0.01824235]
[1767710317204,0.7914456,3289.7,3289.4,0.01824235]
[1767710317407,3.83123646,3289.7,3289.4,0.01824235]
[1767710317711,0.7914456,3289.7,3289.4,0.01824235]
[1767710317872,0.792,3290.4,3289.6,0.01824235]
[1767710318315,12.15217786,3291.6,3289.8,0.01824235]
[1767710318608,12.15217786,3291.6,3290.2,0.01824235]
[1767710318609,1.07331621,3291.5,3290.2,0.01824235]
[1767710318771,12.15217786,3291.6,3290.2,0.01824235]
[1767710319093,0.03797776,3291.4,3290.2,0.01824235]
[1767710319296,0.03797776,3291.4,3290.0,0.01824235]
[1767710319601,0.03797776,3291.4,3290.2,0.01824235]
[1767710320304,0.792,3291.3,3289.8,0.01824235]
[1767710320592,0.31916551,3291.2,3289.9,0.01824235]
[1767710320799,0.01936052,3291.1,3289.9,0.01824235]
[1767710321007,0.03798237,3291.0,3289.9,0.01824235]
[1767710321173,0.01936052,3290.9,3288.6,0.01824235]
[1767710321502,0.03798468,3290.8,3289.6,0.01824235]
[1767710321679,0.01936052,3290.7,3290.0,0.01824235]
[1767710321869,0.03798699,3290.6,3289.5,0.01824235]
[1767710322199,6.07828834,3290.4,3289.7,0.01824235]
[1767710322512,0.01936052,3290.3,3289.7,0.01824235]
[1767710322804,0.03799161,3290.2,3289.5,0.01824235]
[1767710322985,0.01936052,3290.1,3289.6,0.01824235]
[1767710323304,0.01936052,3290.1,3289.4,0.01824235]
[1767710323469,0.03799392,3290.0,3288.8,0.01824235]
[1767710323673,0.03799392,3290.0,3288.6,0.01824235]
[1767710323674,0.01936052,3289.9,3288.9,0.01824235]
[1767710323902,0.792,3289.8,3288.9,0.01824235]
[1767710324200,0.792,3289.8,3288.0,1.97924064]
[1767710324201,9.11964978,3289.6,3288.1,0.01824235]
[1767710324431,0.01936052,3289.5,3288.3,0.01824235]
[1767710324725,0.792,3289.4,3288.5,0.01824235]
[1767710324924,0.01936052,3289.3,3288.3,0.01824235]
[1767710325093,0.01936052,3289.3,3288.1,0.01824235]
[1767710325506,0.01936052,3289.3,3287.6,0.01824235]
[1767710325809,0.01824235,3292.1,3289.6,1.96099829]
[1767710326006,0.01824235,3292.1,3289.8,1.96099829]
[1767710326007,0.01824235,3291.7,3289.8,1.96099829]
[1767710326216,3.03812851,3291.5,3290.0,1.96099829]
[1767710326618,6.07625702,3291.5,3290.0,1.96099829]
[1767710326819,0.0212711,3292.0,3290.1,1.96099829]
[1767710327033,3.03777573,3291.9,3290.1,1.96099829]
[1767710327535,2.65560948,3292.3,3290.1,1.96099829]
[1767710327703,5.69301728,3292.3,3290.1,1.96099829]
[1767710328237,0.03783323,3292.2,3290.3,1.96099829]
[1767710328406,0.05910433,3292.2,3290.4,1.96099829]
[1767710328930,0.0212711,3292.0,3290.4,2.73399829]
[1767710329237,0.0212711,3291.8,3290.4,2.73399829]
[1767710329399,0.03783323,3291.7,3290.5,1.96099829]
[1767710329744,0.03783323,3292.0,3290.5,1.96099829]
[1767710329928,0.0212711,3291.9,3290.5,2.73399829]
[1767710330103,0.03783323,3291.8,3290.5,2.73399829]
[1767710330304,0.0212711,3292.0,3290.5,4.99998936]
[1767710330585,2.65560948,3292.3,3290.6,1.96099829]
[1767710330833,0.03783323,3292.3,3291.4,1.96099829]
[1767710331033,0.03783323,3292.3,3290.7,0.773]
[1767710331242,0.05910433,3292.3,3290.7,3.61520241]
[1767710331419,0.0212711,3292.3,3290.8,1.96099829]
[1767710331607,0.03783323,3292.2,3290.8,1.96099829]
[1767710331807,2.67688058,3292.3,3290.8,1.96099829]
[1767710332009,2.69344271,3292.3,3290.8,1.96099829]
[1767710332338,3.03748253,3292.2,3290.8,1.96099829]
[1767710332502,0.03783323,3292.1,3290.8,1.96099829]
[1767710332698,0.05910433,3292.1,3290.8,1.96099829]
[1767710332907,3.03748253,3292.2,3290.9,1.96099829]
[1767710333106,2.65560948,3292.3,3290.9,1.96099829]
[1767710333339,2.65560948,3292.3,3290.8,9.11631661]
[1767710333340,2.65560948,3292.3,3291.1,1.96099829]
[1767710334451,0.002,3294.8,3292.4,0.51121207]
[1767710334607,0.002,3294.8,3292.7,1.01229951]
[1767710334806,0.002,3294.8,3292.8,0.25952256]
[1767710335126,0.002,3294.8,3292.9,0.16]
[1767710335321,0.002,3294.9,3293.0,0.22048221]
[1767710335525,0.002,3295.5,3293.0,0.22048221]
[1767710335526,0.002,3295.5,3293.1,0.41952256]
[1767710335735,0.002,3295.5,3293.1,1.42982207]
[1767710335935,0.002,3295.5,3293.4,0.41952256]
[1767710336233,0.002,3295.5,3293.3,1.01029951]
[1767710336234,0.002,3295.5,3293.6,0.16]
[1767710336534,0.002,3295.5,3293.7,9.88129763]
[1767710336736,0.002,3295.5,3293.8,0.98812976]
[1767710336932,0.002,3295.5,3293.8,1.76112976]
[1767710337137,0.002,3295.5,3294.0,0.16]
[1767710337510,3.03545092,3296.6,3294.0,0.16]
[1767710337511,0.0212711,3296.5,3294.0,0.16]
[1767710337835,0.002,3296.6,3294.4,0.16]
[1767710338436,0.002,3296.6,3294.6,0.16]
[1767710338733,0.002,3296.6,3294.7,2.00314478]
[1767710338939,0.002,3296.6,3294.7,1.23014478]
[1767710339139,0.002,3296.6,3294.8,0.773]
[1767710339376,0.002,3296.6,3294.5,6.07072392]
[1767710339377,0.0212711,3296.5,3294.5,6.07072392]
[1767710339517,0.0212711,3296.5,3293.8,4.02405169]
[1767710339518,0.0212711,3296.1,3294.6,0.773]
[1767710339722,0.0212711,3296.5,3294.7,0.772]
[1767710340106,0.002,3294.9,3294.8,0.772]
[1767710340320,0.002,3296.6,3294.0,0.16]
[1767710340548,0.0232711,3296.6,3294.1,1.23036595]
[1767710340848,0.0212711,3296.1,3294.1,1.23036595]
[1767710341023,0.0212711,3296.1,3294.2,0.772]
[1767710341204,0.0212711,3296.4,3294.2,0.772]
[1767710341409,0.0212711,3296.1,3294.1,1.23036595]
[1767710341608,0.0232711,3296.6,3294.2,0.772]
[1767710341609,0.0212711,3296.3,3294.2,0.772]
[1767710341866,0.0212711,3296.8,3294.2,0.772]
[1767710341867,1e-08,3298.6,3295.5,0.0212711]
[1767710342019,1e-08,3298.6,3295.9,0.01026399]
[1767710342213,1e-08,3298.6,3296.2,0.25952256]
[1767710342413,1e-08,3298.6,3296.8,0.16]
[1767710342941,1e-08,3298.6,3296.9,0.772]
[1767710343369,1e-08,3298.6,3297.0,0.16]
[1767710343872,1e-08,3298.6,3296.5,12.1340816]
[1767710344046,1e-08,3298.6,3296.6,1.46492651]
[1767710344245,1e-08,3298.6,3296.7,0.772]
[1767710344447,1e-08,3298.6,3296.8,6.0664887]
[1767710344650,1e-08,3298.6,3296.8,3.03324435]
[1767710344853,1e-08,3298.6,3296.8,6.0664887]
[1767710345174,1e-08,3298.6,3296.9,0.16]
[1767710346556,1e-08,3298.6,3297.0,9.09918105]
[1767710347459,1e-08,3298.6,3296.8,0.68384887]
[1767710347761,1e-08,3298.6,3296.9,3.80510495]
[1767710347945,1e-08,3298.6,3296.9,0.772]
[1767710348148,0.0212711,3298.5,3296.9,0.772]
[1767710348350,0.0212711,3298.5,3296.7,3.80531262]
[1767710348644,0.0212711,3298.5,3296.7,0.772]
[1767710348645,9.09531894,3298.4,3296.7,0.772]
[1767710348881,1e-08,3298.6,3296.7,9.87197461]
[1767710349092,6.06318675,3298.6,3296.7,6.83863825]
[1767710349577,3.03159338,3298.6,3296.8,0.03033244]
[1767710349745,1e-08,3298.6,3296.7,9.87197461]
[1767710349941,0.20465635,3299.1,3297.2,0.25952256]
[1767710350153,0.20465635,3299.1,3297.3,0.772]
[1767710350154,3.23579047,3299.1,3297.3,0.772]
[1767710350363,3.23579047,3299.1,3297.4,0.772]
[1767710350566,0.20465635,3299.1,3297.5,6.0652009]
[1767710350781,3.23579534,3299.1,3297.5,9.09780135]
[1767710350958,3.23579534,3299.1,3297.5,7.05218103]
[1767710351153,6.26693433,3299.1,3297.5,7.05218103]
[1767710351388,0.20465635,3299.1,3297.5,7.05218103]
[1767710351590,0.002,3300.0,3297.6,0.16]
[1767710351790,0.002,3300.0,3298.0,0.16]
[1767710352091,0.002,3300.0,3298.1,0.772]
[1767710352594,0.002,3298.8,3298.2,0.772]
[1767710352793,0.002,3298.8,3298.1,6.0640975]
[1767710352794,0.002,3298.8,3298.0,3.03210524]
[1767710352960,0.002,3298.8,3297.7,0.03032416]
[1767710353161,0.002,3298.8,3296.8,4.02037532]
[1767710353162,0.002,3298.8,3296.9,0.16]
[1767710353466,0.002,3298.8,3297.0,0.0303306]
[1767710353867,0.002,3298.8,3297.0,0.771]
[1767710354061,0.002,3298.8,3297.2,3.03287098]
[1767710354413,0.002,3298.8,3297.0,0.771]
[1767710354414,0.93519451,3298.8,3297.0,0.771]
[1767710354587,10.00696659,3298.5,3297.0,0.771]
[1767710354896,10.00696659,3298.5,3296.7,3.03326988]
[1767710354897,0.91192341,3298.4,3296.7,3.03324453]
[1767710355192,0.91192341,3298.4,3296.8,0.03033244]
[1767710355391,0.91192341,3298.4,3296.5,0.0303352]
[1767710355596,0.91192341,3298.4,3296.7,3.03332546]
[1767710355761,0.91192341,3298.4,3296.7,3.03331765]
[1767710355960,0.91192341,3298.4,3296.8,3.06355197]
[1767710356163,0.93319451,3298.4,3296.4,3.80455407]
[1767710356395,0.0212711,3298.2,3296.4,0.771]
[1767710356566,9.09614625,3298.1,3296.4,0.771]
[1767710356769,12.917195,3298.1,3295.9,3.03406733]
[1767710356970,9.88514625,3298.1,3296.2,3.03377538]
[1767710357263,9.88514625,3298.1,3295.3,0.0212711]
[1767710357264,0.0212711,3297.6,3294.9,0.0212711]
[1767710357493,6.0640975,3298.1,3296.4,3.03357928]
[1767710357691,6.0640975,3298.1,3296.5,0.0303352]
[1767710357859,3.03204875,3298.1,3296.5,0.0303352]
[1767710358060,3.03177298,3298.4,3296.5,0.0303352]
[1767710358268,6.06354596,3298.4,3296.5,0.0303352]
[1767710358710,3.03177298,3298.4,3296.6,6.06685676]
[1767710358970,3.03177298,3298.4,3296.7,0.64005256]
[1767710359169,0.91192341,3298.3,3296.5,3.03348596]
[1767710359522,0.1448,3298.6,3296.6,0.03033428]
[1767710359799,0.1448,3298.6,3296.5,9.8715612]
[1767710359800,6.20798001,3298.6,3296.5,9.8715612]
[1767710360002,6.20798001,3298.6,3296.7,0.03033336]
[1767710360315,6.20798001,3298.6,3296.8,0.771]
[1767710360501,6.20798001,3298.6,3296.9,0.03033152]
[1767710360705,6.20798001,3298.6,3297.0,6.0661207]
[1767710360884,6.20798001,3298.6,3297.1,0.03032968]
[1767710361293,9.23957087,3298.6,3297.1,0.03032968]
[1767710361593,0.789,3298.5,3296.9,6.06623117]
[1767710361953,0.789,3298.5,3297.0,0.0303306]
[1767710362313,0.1448,3298.6,3297.0,0.0303306]
[1767710362604,2e-08,3298.6,3297.2,9.09862911]
[1767710362810,2e-08,3298.6,3297.3,0.03032784]
[1767710363104,2e-08,3298.6,3297.2,6.06575274]
[1767710363292,2e-08,3298.6,3297.4,0.03032692]
[1767710363605,2e-08,3298.6,3297.3,0.03032784]
[1767710364022,2e-08,3298.6,3296.6,3.03339218]
[1767710364182,2e-08,3298.6,3296.7,3.06366501]
[1767710364183,0.28081926,3298.5,3296.7,3.06366501]
[1767710364374,0.02127112,3298.6,3296.7,3.44713151]
[1767710364699,9.09504318,3298.5,3296.7,3.41678695]
[1767710364883,9.09504318,3298.5,3296.5,0.771]
[1767710364884,0.91192341,3297.9,3296.5,0.771]
[1767710365074,0.91192341,3297.8,3296.3,3.03369805]
[1767710365273,0.91192341,3297.8,3296.4,0.03033612]
[1767710365589,0.91192341,3297.8,3296.2,0.03033796]
[1767710365983,0.91192341,3297.8,3295.2,3.03466259]
[1767710365984,0.91192341,3297.4,3294.9,3.03499182]
[1767710366182,0.91192341,3297.4,3295.0,1.10484819]
[1767710366523,0.789,3297.5,3295.7,3.03424564]
[1767710366689,6.34682464,3297.4,3295.9,3.03407263]
[1767710367019,6.06538484,3297.4,3295.9,6.09848598]
[1767710367333,6.06538484,3297.4,3295.6,3.03430123]
[1767710367334,0.91192341,3297.2,3295.0,0.30349918]
[1767710367485,1.07063554,3297.1,3295.0,0.30349918]
[1767710367681,1.07063554,3297.1,3294.9,0.771]
[1767710367682,0.0212711,3296.9,3294.9,0.771]
[1767710367888,0.0212711,3296.5,3294.2,0.03035638]
[1767710368186,0.28163554,3296.4,3294.3,3.83683985]
[1767710368503,1.07063554,3296.3,3294.6,3.03525968]
[1767710368711,6.06777706,3296.1,3294.2,0.771]
[1767710368912,0.28163554,3296.0,3294.2,0.771]
[1767710369225,0.28163554,3295.9,3294.3,0.771]
[1767710369518,9.10166559,3296.1,3294.3,0.771]
[1767710369729,0.28148233,3296.0,3294.2,0.771]
[1767710370013,0.28148233,3295.9,3294.2,0.771]
[1767710370217,6.06777706,3296.1,3294.3,0.03035546]
[1767710370591,6.06814526,3295.9,3294.0,6.07162493]
[1767710370817,6.06814526,3295.9,3294.1,0.0303573]
[1767710371389,6.06685676,3296.6,3294.1,0.0303573]
[1767710371712,0.28127226,3296.5,3294.3,0.0212711]
[1767710371883,0.28127226,3296.4,3294.4,0.03035454]
[1767710372087,6.06692807,3296.6,3294.5,0.03035361]
[1767710372282,6.06692807,3296.6,3294.6,0.771]
[1767710372517,3.03306035,3297.0,3294.7,0.03035177]
[1767710372718,3.03319175,3296.9,3294.9,0.16]
[1767710372907,3.03319175,3296.9,3295.0,0.03034901]
[1767710373215,0.96426215,3297.5,3295.1,0.0212711]
[1767710373399,0.789,3297.8,3295.5,0.0212711]
[1767710373609,3.34384581,3297.6,3295.5,0.0212711]
[1767710373787,3.06284645,3297.6,3295.6,0.03034348]
[1767710373982,0.28099528,3297.5,3295.7,0.772]
[1767710374227,6.06502489,3297.6,3295.8,0.03034164]
[1767710374524,0.20694181,3297.7,3295.8,0.03034164]
[1767710374525,3.23937156,3297.7,3295.8,0.03034164]
[1767710374708,3.23937156,3297.7,3295.9,9.10221789]
[1767710374912,3.23937156,3297.7,3296.0,0.8236109]
[1767710375396,0.20694181,3297.7,3296.2,0.0212711]
[1767710375725,0.20694181,3297.7,3296.4,0.0212711]
[1767710375893,0.20694181,3297.7,3296.5,0.0303352]
[1767710376420,0.789,3298.4,3296.6,0.0212711]
[1767710376585,3.03168106,3298.5,3296.7,0.772]
[1767710376788,0.96426215,3298.3,3296.8,3.03324435]
[1767710377023,0.96426215,3298.3,3296.8,9.09973305]
[1767710377200,3.03182274,3298.4,3296.8,6.0664887]
[1767710377592,0.96426215,3298.3,3296.8,3.03324435]
[1767710377788,0.03033796,3298.2,3296.4,0.0212711]
[1767710378020,0.96426215,3298.2,3296.7,6.06665053]
[1767710378321,0.96426215,3298.2,3296.7,3.03331417]
[1767710378485,0.03033796,3298.3,3296.7,6.06665053]
[1767710378693,6.06364548,3298.4,3296.6,6.06685676]
[1767710378891,6.06364548,3298.4,3296.7,0.68388568]
[1767710379200,0.789,3298.4,3296.8,0.0212711]
[1767710379598,0.789,3298.4,3297.0,0.0212711]
[1767710379800,2e-08,3298.6,3297.0,0.0212711]
[1767710380003,2e-08,3298.6,3297.2,0.0212711]
[1767710380188,2e-08,3298.6,3297.4,0.0212711]
[1767710380815,2e-08,3298.6,3297.5,0.772]
[1767710381013,2e-08,3298.6,3297.6,0.68373697]
[1767710381401,0.002,3298.8,3298.0,0.0212711]
[1767710381592,0.002,3299.1,3298.2,0.0212711]
[1767710381792,0.002,3299.1,3298.3,0.772]
[1767710382219,0.002,3300.0,3298.4,0.16]
[1767710382521,0.002,3300.0,3298.3,0.772]
[1767710382720,0.002,3300.0,3298.4,6.06354596]
[1767710383026,0.002,3300.0,3298.5,1.75873403]
[1767710383223,0.002,3300.0,3298.5,0.772]
[1767710384436,0.002,3300.0,3298.4,3.03177298]
[1767710384625,0.002,3300.0,3298.5,0.771]
[1767710384939,0.002,3300.0,3298.4,3.03177298]
[1767710384940,0.002,3300.0,3298.4,0.771]
[1767710385236,0.82133796,3300.0,3297.7,0.96768677]
[1767710385407,0.82133796,3300.0,3297.8,0.16514237]
[1767710385408,0.0212711,3299.7,3297.8,0.16514237]
[1767710385594,0.0212711,3299.9,3297.8,3.03231242]
[1767710385793,0.31096327,3299.8,3297.8,0.03032324]
[1767710385995,0.98553325,3299.7,3297.1,0.16]
[1767710386328,0.03033796,3299.6,3297.2,0.771]
[1767710386532,0.789,3299.6,3297.5,3.03255563]
[1767710386698,6.06152446,3299.5,3297.6,0.33358064]
[1767710386895,0.03033796,3299.4,3297.7,6.06483306]
[1767710387225,0.03033796,3299.4,3297.8,0.771]
[1767710387398,6.06152446,3299.5,3297.9,0.03032232]
[1767710387399,3.03076223,3299.5,3297.9,0.03032232]
[1767710387803,3.03233267,3300.0,3297.8,0.771]
[1767710388094,3.03230828,3300.0,3297.9,1.32038893]
[1767710388404,0.05160906,3299.9,3297.9,1.29006661]
[1767710388627,0.05160906,3299.9,3297.9,1.32038893]
[1767710388824,9.09146007,3299.8,3298.0,3.03214069]
[1767710388998,0.0212711,3299.3,3297.6,0.30325556]
[1767710389317,0.96426215,3299.1,3297.5,3.03258025]
[1767710389497,0.96426215,3298.9,3297.4,3.03262785]
[1767710389696,0.96426215,3298.9,3297.2,3.03283731]
[1767710389697,0.96426215,3298.7,3297.1,0.001]
[1767710389897,0.0212711,3299.1,3297.1,0.001]
[1767710389898,0.96426215,3298.5,3297.1,0.001]
[1767710390123,0.789,3298.4,3297.1,0.001]
[1767710390715,0.96426215,3298.3,3297.1,0.001]
[1767710390917,7.02817579,3298.2,3297.1,0.001]
[1767710391117,10.06013261,3298.2,3297.1,0.001]
[1767710391307,0.96426215,3298.1,3296.3,3.03368397]
[1767710391513,0.96426215,3298.1,3296.4,3.03359007]
[1767710391514,0.96426215,3297.3,3296.4,3.03359007]
[1767710391721,9.09587046,3298.2,3296.5,0.0303352]
[1767710391908,6.06391364,3298.2,3296.6,3.03341386]
[1767710392125,0.789,3298.1,3296.7,0.30334139]
[1767710392433,0.8102711,3298.1,3296.7,0.30334139]
[1767710392598,0.0212711,3297.9,3295.6,0.96768677]
[1767710392800,0.8102711,3298.1,3296.2,3.03379074]
[1767710393009,9.09642207,3298.0,3296.3,0.03033704]
[1767710393213,0.789,3297.9,3295.9,0.99802749]
[1767710393416,0.789,3297.9,3296.0,1.67432246]
[1767710393711,0.8102711,3297.9,3296.1,0.03033888]
[1767710394331,0.789,3297.8,3296.1,0.03033888]
[1767710394630,0.0212711,3297.7,3296.1,0.03033888]
[1767710394835,0.789,3297.8,3296.1,0.99802565]
[1767710395129,6.0637298,3298.3,3296.3,0.96768677]
[1767710395301,0.8102711,3298.2,3296.4,0.03033612]
[1767710395919,0.0212711,3297.8,3296.0,0.771]
[1767710396126,0.0212711,3297.6,3296.0,3.80495551]
[1767710396435,0.0212711,3298.0,3296.1,3.03388853]
[1767710396631,0.0212711,3297.8,3296.2,0.38352283]
[1767710396845,12.1274596,3298.3,3296.2,0.38352283]
[1767710396846,6.0637298,3298.3,3296.3,0.93600415]
[1767710397135,6.0637298,3298.3,3296.2,6.45111581]
[1767710397136,6.0629945,3298.7,3296.5,0.90566711]
[1767710397304,0.789,3298.6,3296.6,0.93600139]
[1767710397738,0.789,3298.5,3296.7,0.772]
[1767710397937,0.789,3298.5,3296.8,0.03033244]
[1767710398240,6.0629945,3298.7,3296.8,0.93599955]
[1767710398404,0.789,3298.5,3296.8,0.93599955]
[1767710398599,6.0629945,3298.7,3296.8,0.93599955]
[1767710398834,0.789,3298.6,3296.9,1.07646707]
[1767710399038,3.03168106,3298.5,3297.0,6.0964513]
[1767710399223,6.06336212,3298.5,3297.0,6.0964513]
[1767710399459,3.23499475,3299.0,3297.0,6.0964513]
[1767710399460,3.03131346,3298.9,3297.0,7.00211841]
[1767710399630,0.789,3298.8,3297.0,6.97178781]
[1767710399805,0.789,3298.8,3297.1,0.71425878]
[1767710400006,0.789,3298.8,3297.2,0.03032876]
[1767710400239,0.03033796,3298.7,3297.2,0.03032876]
[1767710400440,0.20372522,3299.0,3297.3,0.772]
[1767710400642,6.26628054,3299.0,3297.4,0.90566711]
[1767710400814,3.23500288,3299.0,3297.5,0.030326]
[1767710401008,0.20372522,3299.0,3297.7,0.90566711]
[1767710401207,0.002,3299.7,3297.7,0.90566711]
[1767710401208,3.03067038,3299.6,3297.7,0.93599127]
[1767710401404,3.82160569,3299.7,3297.7,0.93599127]
[1767710401609,0.002,3298.9,3297.8,1.92510857]
[1767710402121,0.002,3298.9,3297.8,1.00335167]
[1767710402323,0.03233796,3298.9,3297.4,0.16776671]
[1767710402628,0.0212711,3298.4,3296.4,0.9217569]
[1767710402829,0.0212711,3298.4,3296.7,3.0333113]
[1767710402830,0.0212711,3298.2,3296.7,3.0333113]
[1767710403043,0.0212711,3297.9,3296.5,0.0303352]
[1767710403206,9.11741735,3298.1,3296.1,0.03033888]
[1767710403414,0.84060906,3298.0,3296.1,0.03033888]
[1767710403640,0.0212711,3297.8,3296.1,0.03033888]
[1767710403840,0.0212711,3297.4,3295.7,0.9217569]
[1767710404043,0.0212711,3298.0,3295.8,0.03034164]
[1767710404247,3.82104875,3298.1,3296.5,6.0670149]
[1767710404565,3.03140535,3298.8,3296.7,1.0817569]
[1767710404708,3.03105918,3299.2,3296.9,0.9217569]
[1767710404910,0.20628557,3299.3,3297.3,0.9217569]
[1767710405145,3.23723588,3299.3,3297.5,0.9217569]
[1767710405342,0.03033796,3299.2,3297.5,0.9217569]
[1767710405545,6.26818619,3299.3,3297.5,0.9520829]
[1767710405748,0.789,3299.1,3297.5,0.9520829]
[1767710406053,0.03033796,3299.0,3297.5,0.9217569]
[1767710406215,0.03033796,3299.0,3297.4,1.30532624]
[1767710406414,0.789,3299.1,3297.4,1.30532624]
[1767710406415,6.26818619,3299.3,3297.5,0.030326]
[1767710406731,3.23723588,3299.3,3297.5,0.030326]
[1767710406968,0.20628557,3299.3,3297.7,0.9217569]
[1767710407117,0.20628557,3299.3,3297.9,0.9217569]
[1767710407118,1e-08,3299.3,3297.9,0.9217569]
[1767710407314,0.002,3299.7,3298.0,0.772]
[1767710407518,0.002,3299.7,3298.1,1.37378059]
[1767710407735,0.002,3299.7,3298.2,0.9217569]
[1767710408947,0.002,3299.7,3298.1,6.0640975]
[1767710409153,3.03264071,3299.7,3298.2,0.77578544]
[1767710409450,6.06328142,3299.7,3298.2,0.77578544]
[1767710409745,3.03264071,3299.7,3298.2,0.77578544]
[1767710409947,0.002,3299.7,3298.3,0.9217569]
[1767710410116,0.002,3299.7,3298.4,0.16975423]
[1767710410544,0.002,3299.7,3298.4,1.09151113]
[1767710410956,1e-08,3300.0,3298.6,0.9217569]
[1767710411160,0.002,3300.3,3298.8,0.9217569]
[1767710411326,0.002,3300.3,3299.0,0.9217569]
[1767710411722,0.002,3300.3,3299.4,0.9217569]
[1767710411977,0.2032607,3301.3,3299.5,0.771]
[1767710412164,3.02920328,3301.2,3299.5,0.771]
[1767710412461,3.23239801,3301.3,3299.5,0.771]
[1767710412961,6.29187328,3301.3,3299.6,3.03067038]
[1767710413259,4.02139801,3301.3,3299.6,6.06134076]
[1767710413459,6.26153532,3301.3,3299.6,6.06134076]
[1767710413765,6.26153532,3301.3,3299.6,9.09201114]
[1767710413766,0.2032607,3301.3,3299.6,9.09201114]
[1767710414054,0.2032607,3301.3,3299.8,0.9217569]
[1767710414231,3.23243148,3301.3,3299.8,0.9217569]
[1767710414438,6.26160226,3301.3,3299.8,0.9217569]
[1767710414761,0.002,3301.1,3299.7,0.98630111]
[1767710414949,6.05877006,3301.0,3299.4,0.771]
[1767710415330,9.11849305,3301.0,3299.4,3.80184767]
[1767710415550,6.05877006,3301.0,3299.2,0.03031037]
[1767710415728,0.0212711,3300.9,3298.9,0.94037569]
[1767710415927,0.0212711,3300.7,3299.0,0.03031221]
[1767710416123,0.0212711,3300.7,3298.6,3.06190189]
[1767710416124,0.03033796,3300.6,3298.6,3.06190189]
[1767710416331,0.03033796,3300.6,3298.7,3.03149412]
[1767710416537,0.789,3300.6,3298.8,3.96827522]
[1767710416762,0.03787304,3300.5,3298.5,0.771]
[1767710416971,0.03787304,3300.5,3298.6,0.01511932]
[1767710417136,9.08980728,3300.4,3298.6,3.03157417]
[1767710417339,0.03787534,3300.3,3298.6,3.03157417]
[1767710417858,0.03787534,3300.3,3298.7,0.01511978]
[1767710418158,0.789,3300.2,3298.7,0.31978918]
[1767710418387,0.789,3300.2,3298.6,3.03157417]
[1767710418388,0.789,3300.1,3298.6,3.04669578]
[1767710418753,0.03787878,3300.0,3298.1,0.0212711]
[1767710418961,0.03787878,3300.0,3298.1,3.03195929]
[1767710419154,6.06078972,3299.9,3298.1,0.01512989]
[1767710419360,3.0294768,3300.9,3298.2,0.0212711]
[1767710419571,1.1073573,3300.8,3298.3,0.01511978]
[1767710419782,0.44049692,3300.7,3298.2,0.01512023]
[1767710419986,0.28049692,3300.6,3298.4,0.01511932]